bitfinex-derivatives/quotes_SOLF0:USTF0_20250416
["timestamp","ask_amount","ask_price","bid_price","bid_amount"]
[1744778275386,6.82956247,125.31,125.3,0.05544364]
[1744778275880,39.5005,125.32,125.3,0.05544364]
[1744778276489,0.05682687,125.33,125.3,0.05544364]
[1744778276779,0.05682687,125.33,125.3,6.88500611]
[1744778276975,0.05682687,125.33,125.32,7.9802]
[1744778278383,0.05682687,125.33,125.32,14.80976247]
[1744778278588,6.82956247,125.37,125.35,7.9782]
[1744778279186,31.52,125.38,125.35,7.9782]
[1744778279583,39.4967,125.38,125.35,8.03672881]
[1744778279793,31.57663221,125.38,125.35,8.03672881]
[1744778280091,7.977,125.37,125.35,0.05852881]
[1744778280390,42.23676614,125.38,125.35,0.05852881]
[1744778281289,7.9776,125.36,125.35,0.05852881]
[1744778282583,18.63773393,125.36,125.35,0.05852881]
[1744778282984,7.9798,125.33,125.31,7.9805]
[1744778283896,8.03828858,125.33,125.31,7.9805]
[1744778284103,0.05848858,125.33,125.32,7.9802]
[1744778286101,0.05848858,125.33,125.31,8.03925848]
[1744778286602,0.05848858,125.33,125.31,0.05885848]
[1744778287302,8.03808858,125.33,125.31,0.05885848]
[1744778287901,8.03808858,125.33,125.31,8.03955848]
[1744778288900,0.05848858,125.33,125.32,7.9802]
[1744778290607,8.03838858,125.33,125.31,0.05885848]
[1744778292305,0.05848858,125.33,125.31,8.03965848]
[1744778293809,8.03838858,125.33,125.31,8.03965848]
[1744778295817,10.66013393,125.32,125.24,2.1624]
[1744778296411,10.66013393,125.3,125.26,7.9837]
[1744778296610,30.74,125.29,125.26,7.9837]
[1744778296814,30.74,125.29,125.23,30.74]
[1744778297113,0.05813173,125.27,125.25,0.05206042]
[1744778297515,8.04173173,125.27,125.25,0.05206042]
[1744778297814,0.05813173,125.27,125.25,0.05206042]
[1744778298815,0.05813173,125.27,125.25,8.03636042]
[1744778300112,8.04153173,125.27,125.25,0.05206042]
[1744778300714,0.05813173,125.27,125.25,0.05206042]
[1744778301516,0.05813173,125.27,125.26,7.984]
[1744778307816,37.59276611,125.34,125.26,37.59276611]
[1744778308017,37.59276611,125.34,125.29,6.83276611]
[1744778308322,6.83276611,125.33,125.28,6.83276611]
[1744778308523,14.81266611,125.33,125.28,6.83276611]
[1744778308818,0.06078505,125.32,125.3,7.9814]
[1744778309317,14.87425116,125.32,125.29,8.04097334]
[1744778309624,6.89355116,125.32,125.29,0.05937334]
[1744778309813,0.06078505,125.32,125.31,7.9808]
[1744778312924,0.06078505,125.32,125.29,0.05937334]
[1744778313523,8.04108505,125.32,125.29,0.05937334]
[1744778314224,8.04108505,125.32,125.29,8.04117334]
[1744778314425,8.04108505,125.32,125.29,0.05937334]
[1744778315126,6.83276611,125.31,125.29,8.04107334]
[1744778315327,14.81366611,125.31,125.29,0.05937334]
[1744778315923,6.83276611,125.31,125.29,8.04137334]
[1744778316628,14.81366611,125.31,125.29,8.04137334]
[1744778318128,14.81366611,125.31,125.29,0.05937334]
[1744778318529,7.9809,125.31,125.29,0.05937334]
[1744778318729,14.81366611,125.31,125.29,8.04127334]
[1744778318929,6.83276611,125.31,125.29,8.04127334]
[1744778319830,14.81366611,125.31,125.29,8.04127334]
[1744778321832,7.9809,125.31,125.29,8.04127334]
[1744778322131,6.83276611,125.31,125.29,8.04127334]
[1744778322330,6.83276611,125.31,125.29,0.05937334]
[1744778322532,14.81386611,125.31,125.29,0.05937334]
[1744778323034,14.81386611,125.31,125.29,8.04147334]
[1744778323434,14.81386611,125.31,125.29,0.05937334]
[1744778323630,45.39416611,125.3,125.29,0.05937334]
[1744778324835,37.41276611,125.3,125.29,0.05937334]
[1744778325131,30.58,125.3,125.29,8.04147334]
[1744778325631,38.5614,125.3,125.29,0.05937334]
[1744778327228,45.39416611,125.3,125.29,0.05937334]
[1744778327531,37.41276611,125.3,125.22,8.90536611]
[1744778327733,6.83276611,125.27,125.22,8.90536611]
[1744778328036,30.58,125.27,125.23,6.83276611]
[1744778328233,37.41276611,125.3,125.25,6.83276611]
[1744778328534,8.04043872,125.29,125.26,0.05342978]
[1744778329035,8.04043872,125.29,125.26,8.03732978]
[1744778329233,0.05793872,125.29,125.26,0.05342978]
[1744778329533,0.05793872,125.29,125.28,7.9827]
[1744778329938,6.83276611,125.34,125.3,7.9809]
[1744778330132,37.41276611,125.34,125.3,7.9809]
[1744778330529,7.9798,125.33,125.3,7.9809]
[1744778331032,8.03999312,125.33,125.3,8.03975787]
[1744778331236,0.06019312,125.33,125.31,7.9805]
[1744778331435,0.06019312,125.33,125.3,0.05885787]
[1744778331838,0.06019312,125.33,125.32,7.9802]
[1744778340346,45.36946611,125.38,125.31,6.83276611]
[1744778340545,45.36946611,125.38,125.34,6.83276611]
[1744778340842,7.9775,125.37,125.34,6.83276611]
[1744778341045,37.39276611,125.38,125.32,39.47816611]
[1744778341346,0.06079173,125.36,125.34,8.03173374]
[1744778342346,0.06079173,125.36,125.34,0.05313374]
[1744778342646,6.89355784,125.36,125.34,0.05313374]
[1744778343046,7.9783,125.35,125.34,0.05313374]
[1744778343248,30.36,125.35,125.29,30.36]
[1744778343445,6.83276611,125.33,125.29,30.36]
[1744778343642,7.9799,125.33,125.28,2.1593]
[1744778343841,6.83276611,125.34,125.29,6.83276611]
[1744778344044,6.83276611,125.34,125.29,11.01176611]
[1744778344242,0.05990034,125.33,125.31,7.9805]
[1744778345749,0.05990034,125.33,125.3,0.05469476]
[1744778346253,7.9806,125.32,125.3,0.05469476]
[1744778346548,14.81336611,125.32,125.3,0.05469476]
[1744778348655,7.9808,125.31,125.3,0.05469476]
[1744778348854,14.81356611,125.31,125.3,0.05469476]
[1744778349448,7.9819,125.3,125.27,7.9831]
[1744778349653,14.81466611,125.3,125.27,7.9831]
[1744778349856,6.83276611,125.3,125.27,7.9831]
[1744778350456,6.89359673,125.3,125.27,8.03692803]
[1744778350756,6.89359673,125.3,125.27,0.05382803]
[1744778351262,7.9824,125.29,125.27,0.05382803]
[1744778351549,6.89359673,125.3,125.27,0.05382803]
[1744778351853,0.06083062,125.3,125.27,0.05382803]
[1744778352157,0.06083062,125.3,125.28,7.9824]
[1744778352852,0.06083062,125.3,125.27,0.05382803]
[1744778353555,0.06083062,125.3,125.28,7.9824]
[1744778354657,8.04233062,125.3,125.28,7.9824]
[1744778354857,6.89359673,125.3,125.27,8.03682803]
[1744778355157,14.87529673,125.3,125.27,8.03682803]
[1744778355457,14.87529673,125.3,125.28,7.9827]
[1744778355656,6.89359673,125.3,125.28,7.9827]
[1744778357548,6.89359673,125.3,125.27,0.05382803]
[1744778357549,0.06083062,125.3,125.27,0.05382803]
[1744778358258,0.06083062,125.3,125.28,7.9824]
[1744778358655,6.83276611,125.29,125.27,0.05382803]
[1744778358957,14.81516611,125.29,125.27,0.05382803]
[1744778360261,7.9827,125.28,125.27,0.05382803]
[1744778362065,14.81496611,125.29,125.27,0.05382803]
[1744778365667,14.81496611,125.29,125.27,8.03712803]
[1744778365962,0.06083062,125.3,125.27,0.05382803]
[1744778366163,0.06083062,125.3,125.27,6.88659414]
[1744778366668,0.06083062,125.3,125.29,6.83276611]
[1744778367068,30.38,125.33,125.29,6.83276611]
[1744778367470,30.38,125.33,125.31,7.9805]
[1744778368166,30.43745485,125.33,125.31,8.03325764]
[1744778368573,30.43745485,125.33,125.32,7.9802]
[1744778369575,0.05745485,125.33,125.32,7.9802]
[1744778374884,30.38,125.36,125.35,7.9783]
[1744778375276,11.08936611,125.38,125.32,6.83276611]
[1744778375476,11.08936611,125.38,125.34,7.9784]
[1744778375676,30.3,125.39,125.34,6.83276611]
[1744778375876,0.05825244,125.38,125.35,0.05899484]
[1744778376079,0.05825244,125.38,125.37,7.977]
[1744778378387,37.13276611,125.42,125.4,7.9748]
[1744778378882,45.10656611,125.42,125.4,7.9748]
[1744778379283,45.16028315,125.42,125.4,8.03551032]
[1744778379488,45.16028315,125.42,125.4,0.06071032]
[1744778379787,0.05371704,125.42,125.4,0.06071032]
[1744778380687,0.05371704,125.42,125.4,8.03551032]
[1744778381589,0.05371704,125.42,125.41,7.9744]
[1744778388195,0.05371704,125.42,125.4,8.03561032]
[1744778388395,0.05371704,125.42,125.4,0.06071032]
[1744778388790,0.05371704,125.42,125.41,7.9744]
[1744778389388,6.83276611,125.51,125.43,6.83276611]
[1744778389590,30.28,125.52,125.47,6.83276611]
[1744778389796,37.11276611,125.52,125.48,7.9696]
[1744778390296,0.05744556,125.51,125.49,0.06089779]
[1744778390691,8.02584556,125.51,125.49,0.06089779]
[1744778390898,0.05744556,125.51,125.49,8.03019779]
[1744778391193,8.02554556,125.51,125.49,0.06089779]
[1744778391495,0.05744556,125.51,125.49,8.03019779]
[1744778392697,8.02554556,125.51,125.49,0.06089779]
[1744778393698,0.05744556,125.51,125.49,8.03009779]
[1744778394596,0.05744556,125.51,125.5,7.9687]
[1744778395998,0.05744556,125.51,125.49,0.06089779]
[1744778397200,8.02584556,125.51,125.49,0.06089779]
[1744778399804,0.05744556,125.51,125.43,30.26]
[1744778400102,14.9156324,125.51,125.43,30.26]
[1744778400294,14.85818684,125.51,125.43,30.26]
[1744778400599,7.9696,125.49,125.46,7.9709]
[1744778400806,14.85818684,125.51,125.43,30.26]
[1744778401004,0.05893754,125.48,125.46,0.06125313]
[1744778401204,7.9706,125.47,125.46,0.06125313]
[1744778401401,0.05893754,125.48,125.46,0.06125313]
[1744778402210,0.05893754,125.48,125.46,8.03205313]
[1744778402603,0.05893754,125.48,125.46,0.06125313]
[1744778403706,7.9706,125.47,125.46,0.06125313]
[1744778405814,0.05893754,125.48,125.46,0.06125313]
[1744778406205,8.02903754,125.48,125.46,0.06125313]
[1744778406411,0.05893754,125.48,125.46,0.06125313]
[1744778406913,7.9706,125.47,125.46,0.06125313]
[1744778408417,0.05893754,125.48,125.46,0.06125313]
[1744778408716,0.05893754,125.48,125.46,8.03205313]
[1744778409014,0.05893754,125.48,125.46,0.06125313]
[1744778409015,8.02903754,125.48,125.46,0.06125313]
[1744778409519,7.9706,125.47,125.46,0.06125313]
[1744778411325,14.78289438,125.47,125.46,0.06125313]
[1744778412527,7.9727,125.44,125.41,7.9743]
[1744778412723,7.9727,125.44,125.41,14.78659438]
[1744778413627,8.02783532,125.44,125.41,14.8410321]
[1744778414228,0.05513532,125.44,125.41,14.8410321]
[1744778414927,0.05513532,125.44,125.42,7.9738]
[1744778415926,0.05513532,125.44,125.43,14.78549438]
[1744778416434,0.05513532,125.44,125.42,14.78579438]
[1744778416728,0.05513532,125.44,125.43,6.81229438]
[1744778416929,0.05513532,125.44,125.42,7.9735]
[1744778417325,0.05513532,125.44,125.42,14.78579438]
[1744778417526,0.05513532,125.44,125.43,7.9732]
[1744778418833,0.05513532,125.44,125.43,14.78549438]
[1744778420532,30.26,125.5,125.47,7.9705]
[1744778420932,38.229,125.5,125.47,7.9705]
[1744778421333,30.26,125.5,125.48,7.9699]
[1744778421530,30.31199835,125.5,125.48,0.0514569]
[1744778421729,0.05199835,125.5,125.48,0.0514569]
[1744778421926,0.05199835,125.5,125.49,7.9693]
[1744778424833,0.05199835,125.5,125.49,14.78159438]
[1744778425929,14.77879438,125.54,125.51,7.9677]
[1744778426134,6.81229438,125.52,125.47,13.23049438]
[1744778426339,14.78009438,125.52,125.49,7.9693]
[1744778426836,8.01871152,125.52,125.49,8.02090768]
[1744778427739,0.05091152,125.52,125.5,7.9687]
[1744778430040,8.01841152,125.52,125.49,8.02070768]
[1744778430240,6.81229438,125.51,125.49,0.05160768]
[1744778431037,14.78039438,125.51,125.49,8.02090768]
[1744778432039,6.81229438,125.51,125.49,8.02090768]
[1744778432337,6.81229438,125.51,125.49,0.05160768]
[1744778432635,6.81229438,125.5,125.43,30.24]
[1744778432838,6.81229438,125.5,125.41,4.2545]
[1744778432839,6.81229438,125.44,125.4,38.2148]
[1744778433537,0.05261465,125.43,125.41,0.05529012]
[1744778434039,8.02581465,125.43,125.41,0.05529012]
[1744778437041,0.05261465,125.43,125.41,8.02969012]
[1744778437241,0.05261465,125.43,125.41,0.05529012]
[1744778437436,0.05261465,125.43,125.42,7.9738]
[1744778437642,0.05261465,125.43,125.41,0.05529012]
[1744778438935,0.05261465,125.43,125.41,2.06189012]
[1744778439132,0.05261465,125.43,125.42,7.9738]
[1744778439637,2.0432,125.49,125.45,7.9714]
[1744778439842,30.28,125.5,125.44,10.65199033]
[1744778440241,7.9694,125.49,125.44,10.65199033]
[1744778440637,0.06091662,125.48,125.46,7.971]
[1744778440846,8.03101662,125.48,125.45,0.05317268]
[1744778441443,8.03101662,125.48,125.45,8.02457268]
[1744778442244,8.03101662,125.48,125.46,7.9712]
[1744778442647,0.06091662,125.48,125.46,7.9712]
[1744778443345,0.06091662,125.48,125.47,7.9706]
[1744778443940,7.9682,125.51,125.48,7.9697]
[1744778444747,7.9688,125.5,125.47,7.9703]
[1744778445047,0.05589028,125.51,125.48,0.05845499]
[1744778445649,7.9691,125.5,125.48,0.05845499]
[1744778448948,30.28,125.5,125.48,0.05845499]
[1744778450048,7.9693,125.49,125.48,0.05845499]
[1744778459255,14.77961236,125.49,125.48,0.05845499]
[1744778461161,38.2491,125.5,125.48,0.05845499]
[1744778461360,0.05589028,125.51,125.48,0.05845499]
[1744778461859,8.02429028,125.51,125.48,8.02815499]
[1744778462158,0.05589028,125.51,125.48,0.05845499]
[1744778462661,8.02429028,125.51,125.48,8.02815499]
[1744778463260,7.9693,125.49,125.48,0.05845499]
[1744778463456,6.81031236,125.49,125.42,37.09031236]
[1744778463657,6.81031236,125.47,125.42,37.09031236]
[1744778463960,6.81031236,125.47,125.43,7.9729]
[1744778464458,8.02732373,125.46,125.44,0.06091271]
[1744778464758,0.05552373,125.46,125.44,0.06091271]
[1744778465160,7.9719,125.45,125.44,0.06091271]
[1744778465961,7.973,125.44,125.41,7.9742]
[1744778467063,8.02313768,125.44,125.41,8.03072319]
[1744778467264,0.05013768,125.44,125.42,7.9735]
[1744778467457,0.05013768,125.44,125.41,0.05652319]
[1744778467759,10.69660995,125.44,125.41,0.05652319]
[1744778467967,0.05013768,125.44,125.41,0.05652319]
[1744778468263,7.9738,125.42,125.41,0.05652319]
[1744778468457,0.05013768,125.44,125.41,0.05652319]
[1744778468763,7.9735,125.43,125.41,0.05652319]
[1744778468964,0.05013768,125.44,125.41,0.05652319]
[1744778469562,0.05013768,125.44,125.41,8.03042319]
[1744778470262,8.02273768,125.44,125.41,8.03042319]
[1744778471763,0.05013768,125.44,125.41,0.05652319]
[1744778472363,0.05013768,125.44,125.42,7.9738]
[1744778473168,0.05013768,125.44,125.41,0.05652319]
[1744778474567,0.05013768,125.44,125.43,7.9732]
[1744778489574,6.86418994,125.44,125.41,8.03042319]
[1744778490378,14.83698994,125.44,125.41,8.03042319]
[1744778494478,7.9734,125.43,125.41,8.03042319]
[1744778494674,6.86418994,125.44,125.41,8.03042319]
[1744778494978,14.83708994,125.44,125.41,8.03042319]
[1744778497384,7.9732,125.43,125.41,8.03042319]
[1744778498083,7.9732,125.43,125.41,0.05652319]
[1744778498683,14.78785226,125.42,125.41,0.05652319]
[1744778499287,7.976,125.39,125.36,42.4124]
[1744778499491,6.81405226,125.39,125.33,30.24]
[1744778499992,7.9766,125.38,125.33,30.24]
[1744778500186,6.81405226,125.39,125.34,6.81405226]
[1744778500383,0.05288661,125.38,125.35,0.05259726]
[1744778500579,0.05288661,125.38,125.36,7.9772]
[1744778501382,0.05288661,125.38,125.35,0.05259726]
[1744778502586,0.05288661,125.38,125.37,7.977]
[1744778504285,0.05288661,125.38,125.36,7.9773]
[1744778505993,0.05288661,125.38,125.35,0.05259726]
[1744778512595,0.05288661,125.38,125.35,6.86664952]
[1744778512796,0.05288661,125.38,125.35,0.05259726]
[1744778513696,0.05288661,125.38,125.36,7.9772]
[1744778514096,0.05288661,125.38,125.35,0.05259726]
[1744778514300,8.02918661,125.38,125.35,8.03049726]
[1744778514492,8.02918661,125.38,125.35,0.05259726]
[1744778514694,14.79125226,125.37,125.35,0.05259726]
[1744778516597,6.81405226,125.37,125.35,0.05259726]
[1744778516805,0.05288661,125.38,125.35,6.86664952]
[1744778517899,0.05288661,125.38,125.36,7.9776]
[1744778518300,0.05288661,125.38,125.35,6.86664952]
[1744778520404,0.05288661,125.38,125.36,7.9771]
[1744778521108,0.05288661,125.38,125.35,8.03039726]
[1744778521300,6.86693887,125.38,125.35,0.05259726]
[1744778521699,6.86693887,125.38,125.36,7.9775]
[1744778522308,6.86693887,125.38,125.35,0.05259726]
[1744778522498,0.05288661,125.38,125.35,0.05259726]
[1744778524306,0.05288661,125.38,125.37,7.977]
[1744778526010,0.05288661,125.38,125.36,7.9773]
[1744778527209,8.02938661,125.38,125.35,8.03049726]
[1744778527410,6.86693887,125.38,125.35,0.05259726]
[1744778527712,14.79165226,125.36,125.35,0.05259726]
[1744778529113,6.81405226,125.36,125.35,0.05259726]
[1744778529412,30.24,125.37,125.35,0.05259726]
[1744778529606,6.86693887,125.38,125.36,7.9776]
[1744778530013,6.86693887,125.38,125.35,0.05259726]
[1744778530519,14.84353887,125.38,125.35,8.03039726]
[1744778530811,0.05288661,125.38,125.35,0.05259726]
[1744778531416,0.05288661,125.38,125.36,7.9773]
[1744778532617,0.05288661,125.38,125.36,6.81405226]
[1744778533113,6.81405226,125.37,125.35,0.05259726]
[1744778533319,6.81405226,125.37,125.22,598.2193]
[1744778533320,6.81405226,125.37,125.29,6.81405226]
[1744778533618,7.979,125.34,125.29,6.81405226]
[1744778533807,6.81405226,125.31,125.23,30.26]
[1744778534012,6.81405226,125.32,125.26,6.81405226]
[1744778534213,0.06010343,125.3,125.28,8.03705901]
[1744778534415,6.87415569,125.3,125.28,0.05475901]
[1744778534810,0.06010343,125.3,125.28,0.05475901]
[1744778535015,0.06010343,125.3,125.26,6.81405226]
[1744778535222,14.79735226,125.28,125.23,7.9854]
[1744778535519,6.81405226,125.28,125.23,6.81405226]
[1744778535721,6.81405226,125.28,125.23,37.07405226]
[1744778535924,6.81405226,125.29,125.23,6.81405226]
[1744778536114,0.05557976,125.27,125.25,6.87169951]
[1744778536310,0.05557976,125.27,125.25,14.85629951]
[1744778536615,0.05557976,125.27,125.25,0.05764725]
[1744778536814,0.05557976,125.27,125.25,8.04194725]
[1744778537012,6.81405226,125.26,125.15,76.5499836]
[1744778537224,10.68254451,125.28,125.17,10.68254451]
[1744778537410,10.68254451,125.28,125.18,4.1329]
[1744778537411,7.9835,125.27,125.18,4.1329]
[1744778537814,7.9835,125.27,125.23,7.9854]
[1744778538020,0.05282253,125.26,125.23,38.2454]
[1744778538418,10.68254451,125.24,125.2,30.26]
[1744778538622,0.06068469,125.23,125.2,30.26]
[1744778538819,0.06068469,125.23,125.2,38.2478]
[1744778541722,0.06068469,125.23,125.21,7.9872]
[1744778543524,0.06068469,125.23,125.22,7.9865]
[1744778544222,0.06068469,125.23,125.21,7.9869]
[1744778547224,0.06068469,125.23,125.22,7.9865]
[1744778550120,0.06068469,125.23,125.21,7.9869]
[1744778550825,0.06068469,125.23,125.2,30.26]
[1744778553427,0.06068469,125.23,125.2,38.2477]
[1744778554128,0.06068469,125.23,125.21,7.9871]
[1744778554933,0.06068469,125.23,125.2,38.2475]
[1744778555128,0.06068469,125.23,125.2,30.26]
[1744778555631,0.06068469,125.23,125.21,7.9871]
[1744778556232,0.06068469,125.23,125.2,38.2475]
[1744778557136,6.89847447,125.23,125.2,38.2475]
[1744778557436,14.88437447,125.23,125.2,38.2475]
[1744778564249,6.83778978,125.22,125.2,38.2475]
[1744778565147,14.82498978,125.21,125.2,30.26]
[1744778565346,14.82498978,125.21,125.17,30.3]
[1744778565646,6.83778978,125.19,125.17,30.3]
[1744778566451,6.83778978,125.19,125.18,7.9891]
[1744778566654,6.89534029,125.2,125.17,30.3]
[1744778567048,6.89534029,125.2,125.19,7.9884]
[1744778570149,6.89534029,125.2,125.18,7.9888]
[1744778570150,14.88314029,125.2,125.18,7.9888]
[1744778570855,7.9884,125.19,125.17,30.3]
[1744778571056,6.83778978,125.18,125.17,30.3]
[1744778572257,14.82618978,125.19,125.17,30.3]
[1744778572556,6.83778978,125.18,125.15,36.5308]
[1744778572757,6.83778978,125.18,125.15,44.5214]
[1744778572952,14.82718978,125.18,125.15,44.5214]
[1744778575553,14.82718978,125.18,125.15,14.2214]
[1744778575857,6.83778978,125.17,125.15,14.2214]
[1744778576058,6.89345337,125.17,125.15,14.2214]
[1744778576558,6.89345337,125.17,125.16,7.9904]
[1744778577558,0.05566359,125.17,125.16,7.9904]
[1744778580154,0.05566359,125.17,125.15,6.2308]
[1744778580354,0.05566359,125.17,125.15,10.1481]
[1744778581060,6.83778978,125.16,125.14,7.9913]
[1744778581558,8.04576359,125.17,125.14,7.9913]
[1744778582559,8.04576359,125.17,125.15,7.991]
[1744778582754,15.966,125.28,125.16,6.83778978]
[1744778582959,6.83778978,125.22,125.16,11.08998978]
[1744778583152,7.9881,125.2,125.16,4.2522]
[1744778583356,6.83778978,125.2,125.16,4.2522]
[1744778583861,0.0607765,125.19,125.17,0.05726886]
[1744778584056,0.0607765,125.19,125.17,8.04666886]
[1744778585262,0.0607765,125.19,125.17,0.05726886]
[1744778585862,0.0607765,125.19,125.17,6.89505864]
[1744778586062,6.83778978,125.23,125.17,6.89505864]
[1744778586259,14.82408978,125.23,125.17,6.83778978]
[1744778586961,0.05513978,125.21,125.19,0.05552378]
[1744778587461,0.05513978,125.21,125.2,7.9878]
[1744778588961,6.83778978,125.26,125.24,7.9853]
[1744778589464,6.83778978,125.26,125.25,7.9846]
[1744778589668,6.83778978,125.27,125.25,7.9846]
[1744778589864,37.17778978,125.28,125.25,7.9846]
[1744778590064,37.23480889,125.28,125.25,8.03501242]
[1744778591365,45.21760889,125.28,125.25,0.05041242]
[1744778591867,14.82178978,125.26,125.25,0.05041242]
[1744778592368,7.9849,125.25,125.22,7.9863]
[1744778592561,30.39701911,125.28,125.21,30.34]
[1744778592562,6.83778978,125.24,125.21,30.34]
[1744778593067,6.83778978,125.24,125.21,38.3267]
[1744778593266,6.83778978,125.24,125.21,30.34]
[1744778593467,6.89450335,125.24,125.21,0.05943219]
[1744778593669,14.88030335,125.24,125.21,0.05943219]
[1744778594166,7.986,125.23,125.21,0.05943219]
[1744778594368,6.83778978,125.22,125.21,0.05943219]
[1744778596669,14.82428978,125.22,125.21,0.05943219]
[1744778597566,7.9865,125.22,125.21,0.05943219]
[1744778598463,14.82398978,125.23,125.21,0.05943219]
[1744778598767,6.83778978,125.23,125.21,0.05943219]
[1744778600171,7.9865,125.22,125.21,0.05943219]
[1744778606777,0.05671357,125.24,125.21,37.23722197]
[1744778607278,0.05671357,125.24,125.23,7.9859]
[1744778610079,0.05671357,125.24,125.22,7.9863]
[1744778610377,0.05671357,125.24,125.21,37.23722197]
[1744778610678,6.89450335,125.24,125.21,30.39943219]
[1744778610876,6.89450335,125.24,125.22,7.9862]
[1744778611077,6.89450335,125.24,125.21,30.39943219]
[1744778611478,6.89450335,125.24,125.21,0.05943219]
[1744778611684,14.88010335,125.24,125.21,8.04643219]
[1744778614781,6.89450335,125.24,125.22,7.9864]
[1744778615182,6.89450335,125.24,125.21,0.05943219]
[1744778616181,6.89450335,125.24,125.22,7.9861]
[1744778616377,0.05671357,125.24,125.21,0.05943219]
[1744778616581,0.05671357,125.24,125.21,30.37943219]
[1744778617285,0.05671357,125.24,125.23,7.9859]
[1744778622089,574.88,125.36,125.22,6.83778978]
[1744778622289,6.83778978,125.27,125.22,32.4495]
[1744778622487,14.82158978,125.27,125.22,32.4495]
[1744778622684,14.82158978,125.27,125.23,7.9853]
[1744778622982,14.82158978,125.27,125.22,32.4495]
[1744778622983,6.83778978,125.25,125.22,32.4495]
[1744778623188,6.83778978,125.25,125.24,0.05233656]
[1744778623688,14.82238978,125.25,125.24,0.05233656]
[1744778625087,6.83778978,125.25,125.24,0.05233656]
[1744778626292,6.8954212,125.26,125.24,0.05233656]
[1744778626990,14.8795212,125.26,125.24,0.05233656]
[1744778627189,6.8954212,125.26,125.24,0.05233656]
[1744778628190,7.9846,125.25,125.24,0.05233656]
[1744778629590,14.8797212,125.26,125.24,0.05233656]
[1744778630892,0.05763142,125.26,125.24,0.05233656]
[1744778631390,0.05763142,125.26,125.24,8.03723656]
[1744778632991,0.05763142,125.26,125.25,7.9846]
[1744778633591,0.05763142,125.26,125.24,0.05233656]
[1744778633786,6.83778978,125.25,125.19,2.0093]
[1744778634091,6.83778978,125.23,125.18,6.83778978]
[1744778634293,6.83778978,125.23,125.18,14.82648978]
[1744778634494,6.83778978,125.23,125.18,6.83778978]
[1744778634896,0.05846572,125.22,125.19,0.05685083]
[1744778635094,0.05846572,125.22,125.19,8.04515083]
[1744778635901,0.05846572,125.22,125.2,7.9877]
[1744778636091,0.05846572,125.22,125.19,0.05685083]
[1744778636591,0.05846572,125.22,125.2,7.9872]
[1744778640706,7.9872,125.21,125.19,0.05685083]
[1744778642105,7.9872,125.21,125.19,8.04515083]
[1744778642404,7.9872,125.21,125.19,0.05685083]
[1744778644206,7.9878,125.2,125.19,0.05685083]
[1744778655315,7.9892,125.18,125.16,2.1765]
[1744778655613,6.83778978,125.21,125.16,2.1765]
[1744778655914,6.83778978,125.21,125.16,9.01428978]
[1744778656114,6.83778978,125.21,125.18,7.9888]
[1744778656315,0.05635093,125.2,125.18,7.9888]
[1744778657215,8.04415093,125.2,125.18,7.9888]
[1744778657515,0.05635093,125.2,125.19,7.9884]
[1744778658315,1.39005392,125.31,125.21,7.9869]
[1744778658316,14.82338978,125.24,125.21,7.9869]
[1744778658514,14.82338978,125.24,125.19,2.0349]
[1744778658707,6.83778978,125.24,125.22,7.9862]
[1744778659211,6.896526,125.24,125.22,7.9862]
[1744778659413,6.896526,125.24,125.22,8.03878287]
[1744778659713,14.881826,125.24,125.22,0.05258287]
[1744778661815,14.881826,125.24,125.22,8.03908287]
[1744778663415,14.881826,125.24,125.22,0.05258287]
[1744778664118,6.896526,125.24,125.22,8.03878287]
[1744778664920,7.9859,125.23,125.22,0.05258287]
[1744778675024,7.9876,125.21,125.17,41.21998978]
[1744778675424,6.83778978,125.22,125.18,7.9888]
[1744778675925,7.9881,125.2,125.19,0.05079421]
[1744778683126,8.04800025,125.21,125.19,0.05079421]
[1744778683925,8.04800025,125.21,125.19,8.03889421]
[1744778684927,0.06060025,125.21,125.2,7.9878]
[1744778691732,7.9844,125.26,125.23,7.9854]
[1744778691930,6.83778978,125.28,125.21,9.03708978]
[1744778692131,6.83778978,125.29,125.23,6.83778978]
[1744778692431,6.83778978,125.29,125.23,37.11778978]
[1744778692928,0.05810779,125.27,125.25,8.04379228]
[1744778693124,0.05810779,125.27,125.25,0.05949228]
[1744778693326,0.05810779,125.27,125.26,7.984]
[1744778696332,6.83778978,125.3,125.28,7.9823]
[1744778696825,6.83778978,125.3,125.27,7.9832]
[1744778697231,6.89082441,125.3,125.27,8.03974147]
[1744778697526,6.83778978,125.28,125.27,8.03974147]
[1744778699334,6.83778978,125.28,125.27,0.05654147]
[1744778700637,6.83778978,125.28,125.27,8.03984147]
[1744778701129,6.83778978,125.28,125.27,0.05654147]
[1744778701328,6.89082441,125.3,125.27,0.05654147]